[Event "Late-Titled-Tuesday-Blitz-September-05-2023"]
[Site "Chess.com"]
[Date "2023.09.05"]
[Round "6"]
[White "Chessdemon2019"]
[Black "Maluco_do_Natal_00"]
[Result "0-1"]
[WhiteElo "2354"]
[BlackElo "1979"]
[TimeControl "180+1"]
[EndTime "15:06:42 PDT"]
[Termination "Maluco_do_Natal_00 won by resignation"]

1. e4 {[%clk 0:03:00.9]} 1... c5 {[%clk 0:02:58.7]} 2. Nf3 {[%clk 0:03:01]} 2...
Nc6 {[%clk 0:02:59.3]} 3. Bb5 {[%clk 0:03:01]} 3... e6 {[%clk 0:02:58.6]} 4. O-O
{[%clk 0:03:00.5]} 4... Nge7 {[%clk 0:02:58.8]} 5. Re1 {[%clk 0:02:59.9]} 5...
Ng6 {[%clk 0:02:58]} 6. c3 {[%clk 0:02:59.8]} 6... a6 {[%clk 0:02:56.4]} 7. Bf1
{[%clk 0:03:00]} 7... d5 {[%clk 0:02:50.4]} 8. exd5 {[%clk 0:02:59]} 8... Qxd5
{[%clk 0:02:50.6]} 9. d4 {[%clk 0:02:59.3]} 9... cxd4 {[%clk 0:02:50.1]} 10.
cxd4 {[%clk 0:02:58.4]} 10... Be7 {[%clk 0:02:41.3]} 11. Nc3 {[%clk 0:02:51.5]}
11... Qd8 {[%clk 0:02:39.7]} 12. Be3 {[%clk 0:02:46.6]} 12... O-O {[%clk
0:02:38.9]} 13. Rc1 {[%clk 0:02:37.2]} 13... Bf6 {[%clk 0:02:37.3]} 14. Ne4
{[%clk 0:02:35.8]} 14... Be7 {[%clk 0:02:24.2]} 15. Nc5 {[%clk 0:02:25.2]} 15...
Nb4 {[%clk 0:02:21]} 16. a3 {[%clk 0:02:23.9]} 16... Nd5 {[%clk 0:02:20.8]} 17.
Nd3 {[%clk 0:02:19.4]} 17... Bd7 {[%clk 0:02:10.1]} 18. Nde5 {[%clk 0:02:18.5]}
18... Be8 {[%clk 0:02:01.6]} 19. Bd3 {[%clk 0:02:16.5]} 19... Rc8 {[%clk
0:01:53.3]} 20. Rxc8 {[%clk 0:02:14.4]} 20... Qxc8 {[%clk 0:01:52.1]} 21. Qb3
{[%clk 0:02:13.9]} 21... Nxe3 {[%clk 0:01:41.3]} 22. fxe3 {[%clk 0:02:13.8]}
22... Bd6 {[%clk 0:01:33.8]} 23. Nxg6 {[%clk 0:02:08.3]} 23... hxg6 {[%clk
0:01:32.8]} 24. e4 {[%clk 0:02:08.7]} 24... Bf4 {[%clk 0:01:25.8]} 25. d5 {[%clk
0:01:57.5]} 25... Qc5+ {[%clk 0:01:20.6]} 26. Kh1 {[%clk 0:01:56.2]} 26... exd5
{[%clk 0:01:17.6]} 27. exd5 {[%clk 0:01:54.7]} 27... Bd7 {[%clk 0:01:12.5]} 28.
Qc4 {[%clk 0:01:41.2]} 28... Qd6 {[%clk 0:01:09.3]} 29. b4 {[%clk 0:01:28.2]}
29... Rc8 {[%clk 0:00:55.2]} 30. Qd4 {[%clk 0:01:27.8]} 30... Rc1 {[%clk
0:00:42]} 31. Rxc1 {[%clk 0:01:26.2]} 31... Bxc1 {[%clk 0:00:42.9]} 32. Qc5
{[%clk 0:01:17.7]} 32... Qxc5 {[%clk 0:00:41.4]} 33. bxc5 {[%clk 0:01:17.8]}
33... Bxa3 {[%clk 0:00:41.8]} 34. Ne5 {[%clk 0:01:16.1]} 34... Ba4 {[%clk
0:00:29.3]} 35. c6 {[%clk 0:01:10.2]} 35... bxc6 {[%clk 0:00:22.9]} 36. dxc6
{[%clk 0:01:09.8]} 36... Bd6 {[%clk 0:00:22.7]} 37. Nc4 {[%clk 0:01:10.1]} 37...
Bc7 {[%clk 0:00:20.6]} 38. Be4 {[%clk 0:01:10.5]} 38... Bb5 {[%clk 0:00:20.2]}
39. Na3 {[%clk 0:01:07.5]} 39... Kf8 {[%clk 0:00:19.5]} 40. Kg1 {[%clk
0:01:05.4]} 40... f5 {[%clk 0:00:19.7]} 41. Bd5 {[%clk 0:01:04.2]} 41... Ke7
{[%clk 0:00:19.4]} 42. Kf2 {[%clk 0:01:03.1]} 42... g5 {[%clk 0:00:18.1]} 43.
Ke3 {[%clk 0:01:02.8]} 43... Bxh2 {[%clk 0:00:17.4]} 44. Kd4 {[%clk 0:01:00.1]}
44... Bc7 {[%clk 0:00:17.5]} 45. Nc2 {[%clk 0:00:56]} 45... Kd6 {[%clk
0:00:16.6]} 46. Ne3 {[%clk 0:00:56.3]} 46... Bb6+ {[%clk 0:00:16.3]} 47. Kc3
{[%clk 0:00:55.7]} 47... Bxe3 {[%clk 0:00:16.8]} 48. Bf3 {[%clk 0:00:54.4]}
48... Bxc6 {[%clk 0:00:15.8]} 49. Be2 {[%clk 0:00:54.3]} 49... a5 {[%clk
0:00:14.6]} 0-1

[Event "Late-Titled-Tuesday-Blitz-September-05-2023"]
[Site "Chess.com"]
[Date "2023.09.05"]
[Round "6"]
[White "NowInChess"]
[Black "WilsonPalencia21"]
[Result "0-1"]
[WhiteElo "2272"]
[BlackElo "2554"]
[TimeControl "180+1"]
[EndTime "15:06:43 PDT"]
[Termination "WilsonPalencia21 won on time"]

1. e4 {[%clk 0:03:00.9]} 1... c5 {[%clk 0:02:53.9]} 2. d3 {[%clk 0:03:00.8]}
2... g6 {[%clk 0:02:53.5]} 3. g3 {[%clk 0:03:01.2]} 3... Bg7 {[%clk 0:02:53.1]}
4. Bg2 {[%clk 0:03:01.9]} 4... Nc6 {[%clk 0:02:50.9]} 5. f4 {[%clk 0:03:02.1]}
5... d6 {[%clk 0:02:49.8]} 6. Nf3 {[%clk 0:03:02.3]} 6... Qb6 {[%clk 0:02:48.5]}
7. Nc3 {[%clk 0:02:53.7]} 7... Nd4 {[%clk 0:02:44.3]} 8. Nd5 {[%clk 0:02:29.3]}
8... Qd8 {[%clk 0:02:40.5]} 9. c3 {[%clk 0:02:28.4]} 9... Nxf3+ {[%clk
0:02:37.6]} 10. Qxf3 {[%clk 0:02:28]} 10... e6 {[%clk 0:02:36.1]} 11. Ne3 {[%clk
0:02:27.5]} 11... Ne7 {[%clk 0:02:35.1]} 12. O-O {[%clk 0:02:19.1]} 12... O-O
{[%clk 0:02:34.3]} 13. f5 {[%clk 0:02:19.1]} 13... exf5 {[%clk 0:02:29.5]} 14.
exf5 {[%clk 0:02:07.9]} 14... Nxf5 {[%clk 0:02:26.7]} 15. Nd5 {[%clk 0:01:48.8]}
15... Be6 {[%clk 0:02:22.5]} 16. g4 {[%clk 0:01:35.6]} 16... Nh4 {[%clk
0:02:18.3]} 17. Qf2 {[%clk 0:01:20]} 17... Bxg4 {[%clk 0:02:00.2]} 18. Nf6+
{[%clk 0:01:02.9]} 18... Bxf6 {[%clk 0:01:57.2]} 19. Qxf6 {[%clk 0:01:03.8]}
19... Nxg2 {[%clk 0:01:51.4]} 20. Kxg2 {[%clk 0:00:53]} 20... Be2 {[%clk
0:01:50.4]} 21. Bh6 {[%clk 0:00:47.1]} 21... Bxf1+ {[%clk 0:01:34.6]} 22. Qxf1
{[%clk 0:00:41.2]} 22... Re8 {[%clk 0:01:34.2]} 23. Qf3 {[%clk 0:00:32.4]} 23...
Qe7 {[%clk 0:01:29]} 24. Kh1 {[%clk 0:00:16.9]} 24... c4 {[%clk 0:01:18.5]} 25.
dxc4 {[%clk 0:00:12.3]} 25... Qe4 {[%clk 0:01:15.1]} 26. Rf1 {[%clk 0:00:10.4]}
26... Qxf3+ {[%clk 0:01:12]} 27. Rxf3 {[%clk 0:00:11.3]} 27... Re1+ {[%clk
0:01:07.5]} 28. Kg2 {[%clk 0:00:10.8]} 28... Re2+ {[%clk 0:01:08]} 29. Rf2
{[%clk 0:00:07.9]} 29... Rxf2+ {[%clk 0:01:07.4]} 30. Kxf2 {[%clk 0:00:08.8]}
30... Rc8 {[%clk 0:01:06.3]} 31. b3 {[%clk 0:00:08]} 31... b5 {[%clk 0:01:05.8]}
32. Bf4 {[%clk 0:00:04.4]} 32... bxc4 {[%clk 0:01:05.4]} 33. b4 {[%clk 0:00:05]}
33... d5 {[%clk 0:01:05.1]} 34. Ke3 {[%clk 0:00:05.2]} 34... Re8+ {[%clk
0:01:03.1]} 35. Kd2 {[%clk 0:00:02.3]} 35... f6 {[%clk 0:00:52.2]} 36. Bd6
{[%clk 0:00:01.9]} 36... a6 {[%clk 0:00:51.8]} 37. a4 {[%clk 0:00:01.4]} 37...
Kf7 {[%clk 0:00:51.7]} 38. b5 {[%clk 0:00:01.5]} 38... axb5 {[%clk 0:00:50.3]}
39. axb5 {[%clk 0:00:02.4]} 39... Ke6 {[%clk 0:00:50.2]} 40. Bc7 {[%clk
0:00:01.8]} 40... Kd7 {[%clk 0:00:50.1]} 41. Bf4 {[%clk 0:00:01.1]} 41... Re4
{[%clk 0:00:49.2]} 0-1

[Event "Late-Titled-Tuesday-Blitz-September-05-2023"]
[Site "Chess.com"]
[Date "2023.09.05"]
[Round "6"]
[White "zeitnot2006"]
[Black "tptagain"]
[Result "0-1"]
[WhiteElo "2761"]
[BlackElo "2986"]
[TimeControl "180+1"]
[EndTime "15:06:47 PDT"]
[Termination "tptagain won by checkmate"]

1. e4 {[%clk 0:03:00.9]} 1... c6 {[%clk 0:03:00.5]} 2. Nf3 {[%clk 0:02:59.2]}
2... d5 {[%clk 0:03:00.9]} 3. d3 {[%clk 0:02:59.9]} 3... g6 {[%clk 0:03:01.2]}
4. Nbd2 {[%clk 0:02:59]} 4... Bg7 {[%clk 0:03:01]} 5. g3 {[%clk 0:02:59.2]} 5...
Nh6 {[%clk 0:03:01.6]} 6. Bg2 {[%clk 0:02:59.4]} 6... O-O {[%clk 0:03:02.3]} 7.
O-O {[%clk 0:02:59.9]} 7... f6 {[%clk 0:03:02.5]} 8. c3 {[%clk 0:03:00.1]} 8...
Nf7 {[%clk 0:03:00.4]} 9. Qc2 {[%clk 0:03:00.4]} 9... e5 {[%clk 0:03:00.3]} 10.
Rd1 {[%clk 0:03:00]} 10... Na6 {[%clk 0:02:57.7]} 11. a4 {[%clk 0:02:59.4]}
11... Bg4 {[%clk 0:02:51.8]} 12. h3 {[%clk 0:02:58.8]} 12... Be6 {[%clk
0:02:52]} 13. Nf1 {[%clk 0:02:56.7]} 13... Qd7 {[%clk 0:02:49.6]} 14. Kh2 {[%clk
0:02:53.9]} 14... Rad8 {[%clk 0:02:45.9]} 15. Be3 {[%clk 0:02:52.5]} 15... b6
{[%clk 0:02:35.7]} 16. N1d2 {[%clk 0:02:41.8]} 16... f5 {[%clk 0:02:30.3]} 17.
Nb3 {[%clk 0:02:37.5]} 17... Qe7 {[%clk 0:02:08.3]} 18. a5 {[%clk 0:02:29.7]}
18... b5 {[%clk 0:02:07.9]} 19. exf5 {[%clk 0:02:12.9]} 19... gxf5 {[%clk
0:02:04.5]} 20. d4 {[%clk 0:02:13.1]} 20... f4 {[%clk 0:01:41.3]} 21. gxf4
{[%clk 0:02:10.9]} 21... e4 {[%clk 0:01:41.3]} 22. Ne5 {[%clk 0:02:08.5]} 22...
Nxe5 {[%clk 0:01:40.3]} 23. fxe5 {[%clk 0:01:59.1]} 23... Qh4 {[%clk 0:01:38.8]}
24. Nd2 {[%clk 0:01:49.1]} 24... Bh6 {[%clk 0:00:58.1]} 25. Rf1 {[%clk
0:00:58.3]} 25... Bf4+ {[%clk 0:00:50.8]} 26. Bxf4 {[%clk 0:00:57.1]} 26...
Qxf4+ {[%clk 0:00:50]} 27. Kh1 {[%clk 0:00:56]} 27... Rd7 {[%clk 0:00:49.2]} 28.
Rg1 {[%clk 0:00:47.5]} 28... Rg7 {[%clk 0:00:45]} 29. Nf1 {[%clk 0:00:41.1]}
29... Qh4 {[%clk 0:00:33.7]} 30. Re1 {[%clk 0:00:24.1]} 30... Rxf2 {[%clk
0:00:28]} 31. Re2 {[%clk 0:00:24.2]} 31... Bxh3 {[%clk 0:00:22.6]} 32. Bxe4
{[%clk 0:00:04]} 32... Bg2# {[%clk 0:00:21.7]} 0-1

[Event "Late-Titled-Tuesday-Blitz-September-05-2023"]
[Site "Chess.com"]
[Date "2023.09.05"]
[Round "6"]
[White "Djager97"]
[Black "Witik"]
[Result "1-0"]
[WhiteElo "2525"]
[BlackElo "2668"]
[TimeControl "180+1"]
[EndTime "15:06:50 PDT"]
[Termination "Djager97 won on time"]

1. e4 {[%clk 0:03:00.9]} 1... e5 {[%clk 0:02:58.6]} 2. Nf3 {[%clk 0:03:00.8]}
2... Nc6 {[%clk 0:02:58.8]} 3. d4 {[%clk 0:03:01.1]} 3... exd4 {[%clk
0:02:58.8]} 4. Nxd4 {[%clk 0:03:02]} 4... Bc5 {[%clk 0:02:59.2]} 5. Nb3 {[%clk
0:03:01.7]} 5... Bb6 {[%clk 0:02:59.3]} 6. Qe2 {[%clk 0:03:02.1]} 6... Nge7
{[%clk 0:02:41.5]} 7. Nc3 {[%clk 0:03:00.7]} 7... O-O {[%clk 0:02:40.8]} 8. Be3
{[%clk 0:03:01.2]} 8... f5 {[%clk 0:02:26.1]} 9. O-O-O {[%clk 0:03:00.4]} 9...
d6 {[%clk 0:02:21.7]} 10. f4 {[%clk 0:02:57.2]} 10... fxe4 {[%clk 0:02:16.1]}
11. g3 {[%clk 0:02:53.3]} 11... Nf5 {[%clk 0:02:04.8]} 12. Bxb6 {[%clk 0:02:51]}
12... axb6 {[%clk 0:02:05.7]} 13. Qxe4 {[%clk 0:02:50.8]} 13... Kh8 {[%clk
0:02:01.2]} 14. Bc4 {[%clk 0:02:43.8]} 14... Na5 {[%clk 0:01:40.9]} 15. Nxa5
{[%clk 0:02:40.7]} 15... Rxa5 {[%clk 0:01:41.8]} 16. Rhe1 {[%clk 0:02:39.2]}
16... c6 {[%clk 0:01:33.7]} 17. Bb3 {[%clk 0:02:25.2]} 17... d5 {[%clk
0:01:26.1]} 18. Qe2 {[%clk 0:02:11]} 18... Qf6 {[%clk 0:01:20.4]} 19. g4 {[%clk
0:01:59.9]} 19... Nd4 {[%clk 0:01:11.6]} 20. Qe7 {[%clk 0:01:57.7]} 20... Nxb3+
{[%clk 0:01:07.1]} 21. cxb3 {[%clk 0:01:55.2]} 21... Bxg4 {[%clk 0:00:50.3]} 22.
Qxf6 {[%clk 0:01:50.3]} 22... gxf6 {[%clk 0:00:50.4]} 23. Rd2 {[%clk 0:01:41.4]}
23... Raa8 {[%clk 0:00:46.3]} 24. Re7 {[%clk 0:01:19.9]} 24... Rae8 {[%clk
0:00:41.4]} 25. Rxb7 {[%clk 0:01:18.4]} 25... Re1+ {[%clk 0:00:40.1]} 26. Nd1
{[%clk 0:01:16.7]} 26... Bf3 {[%clk 0:00:22.7]} 27. Rxb6 {[%clk 0:01:09.6]}
27... c5 {[%clk 0:00:10.4]} 28. a4 {[%clk 0:01:01.5]} 28... Rg8 {[%clk
0:00:09.7]} 29. Kc2 {[%clk 0:00:36.2]} 29... d4 {[%clk 0:00:09.4]} 30. Nf2
{[%clk 0:00:30.1]} 30... Rgg1 {[%clk 0:00:08.1]} 31. b4 {[%clk 0:00:29.9]} 31...
c4 {[%clk 0:00:03.5]} 32. Rxd4 {[%clk 0:00:24.9]} 32... Re2+ {[%clk 0:00:03.9]}
33. Rd2 {[%clk 0:00:24.7]} 1-0

[Event "Late-Titled-Tuesday-Blitz-September-05-2023"]
[Site "Chess.com"]
[Date "2023.09.05"]
[Round "6"]
[White "PNEPaul"]
[Black "AlexNovitz"]
[Result "1-0"]
[WhiteElo "1894"]
[BlackElo "2213"]
[TimeControl "180+1"]
[EndTime "15:06:56 PDT"]
[Termination "PNEPaul won by checkmate"]

1. e4 {[%clk 0:03:00.9]} 1... e6 {[%clk 0:03:00.2]} 2. d4 {[%clk 0:03:00.1]}
2... d5 {[%clk 0:03:00.9]} 3. e5 {[%clk 0:03:00.3]} 3... c5 {[%clk 0:03:00.9]}
4. Qg4 {[%clk 0:02:59.9]} 4... Qc7 {[%clk 0:02:59.5]} 5. Nf3 {[%clk 0:02:59.8]}
5... f5 {[%clk 0:02:59.6]} 6. Qg3 {[%clk 0:02:59.3]} 6... Nc6 {[%clk 0:02:57.9]}
7. Bd3 {[%clk 0:02:59.1]} 7... cxd4 {[%clk 0:02:53.2]} 8. O-O {[%clk 0:02:57.7]}
8... Nge7 {[%clk 0:02:53]} 9. h4 {[%clk 0:02:57.2]} 9... Ng6 {[%clk 0:02:48.3]}
10. Re1 {[%clk 0:02:54.2]} 10... Bd7 {[%clk 0:02:44.4]} 11. a3 {[%clk
0:02:52.1]} 11... O-O-O {[%clk 0:02:42.5]} 12. c3 {[%clk 0:02:52]} 12... Bc5
{[%clk 0:02:38.2]} 13. b4 {[%clk 0:02:44.1]} 13... Bb6 {[%clk 0:02:37.6]} 14. b5
{[%clk 0:02:41.3]} 14... Na5 {[%clk 0:02:28.7]} 15. cxd4 {[%clk 0:02:34.5]}
15... Kb8 {[%clk 0:02:21]} 16. Bg5 {[%clk 0:02:25]} 16... Nb3 {[%clk 0:02:10]}
17. Bxd8 {[%clk 0:02:21.2]} 17... Rxd8 {[%clk 0:02:10.9]} 18. h5 {[%clk
0:02:12.5]} 18... Ne7 {[%clk 0:02:04.6]} 19. Qxg7 {[%clk 0:02:10.1]} 19... Nxa1
{[%clk 0:01:50.1]} 20. Qxe7 {[%clk 0:02:02.4]} 20... h6 {[%clk 0:01:46.3]} 21.
Nbd2 {[%clk 0:01:51.4]} 21... Qc3 {[%clk 0:01:46]} 22. Bf1 {[%clk 0:01:27]}
22... Nb3 {[%clk 0:01:38.5]} 23. Nxb3 {[%clk 0:01:24.2]} 23... Qxb3 {[%clk
0:01:39.4]} 24. Rc1 {[%clk 0:01:11.7]} 24... Rc8 {[%clk 0:01:12.6]} 25. Qd6+
{[%clk 0:01:00.3]} 25... Ka8 {[%clk 0:01:07.5]} 26. Qxd7 {[%clk 0:00:53.2]}
26... Rb8 {[%clk 0:00:48.4]} 27. Rc8 {[%clk 0:00:48.4]} 27... a6 {[%clk
0:00:39.2]} 28. Rxb8+ {[%clk 0:00:46.9]} 28... Kxb8 {[%clk 0:00:39.5]} 29. Qd6+
{[%clk 0:00:34.6]} 29... Ka7 {[%clk 0:00:37.3]} 30. Qxe6 {[%clk 0:00:33]} 30...
Qxa3 {[%clk 0:00:33.2]} 31. Qxf5 {[%clk 0:00:32.4]} 31... a5 {[%clk 0:00:31.1]}
32. e6 {[%clk 0:00:32.2]} 32... Bd8 {[%clk 0:00:31]} 33. Qxd5 {[%clk 0:00:30.3]}
33... Be7 {[%clk 0:00:30.5]} 34. Ne5 {[%clk 0:00:26.7]} 34... a4 {[%clk
0:00:28.9]} 35. Qd7 {[%clk 0:00:26]} 35... Kb6 {[%clk 0:00:21.7]} 36. Ng6 {[%clk
0:00:15.1]} 36... Bb4 {[%clk 0:00:18.9]} 37. Qd8+ {[%clk 0:00:08]} 37... Ka7
{[%clk 0:00:17.4]} 38. b6# {[%clk 0:00:07.6]} 1-0

[Event "Late-Titled-Tuesday-Blitz-September-05-2023"]
[Site "Chess.com"]
[Date "2023.09.05"]
[Round "6"]
[White "TanitoluwaAps116"]
[Black "2k28Lakers"]
[Result "0-1"]
[WhiteElo "2685"]
[BlackElo "2538"]
[TimeControl "180+1"]
[EndTime "15:06:59 PDT"]
[Termination "2k28Lakers won by checkmate"]

1. e4 {[%clk 0:02:47.4]} 1... e5 {[%clk 0:02:59.7]} 2. Nf3 {[%clk 0:02:45.8]}
2... Nc6 {[%clk 0:03:00]} 3. Bc4 {[%clk 0:02:46.3]} 3... Nf6 {[%clk 0:03:00.1]}
4. d3 {[%clk 0:02:46]} 4... Bc5 {[%clk 0:03:00.3]} 5. O-O {[%clk 0:02:43.2]}
5... d6 {[%clk 0:03:00]} 6. c3 {[%clk 0:02:42.7]} 6... a6 {[%clk 0:03:00.4]} 7.
a4 {[%clk 0:02:42.5]} 7... Ba7 {[%clk 0:03:00.7]} 8. Re1 {[%clk 0:02:41.9]} 8...
O-O {[%clk 0:02:59.2]} 9. h3 {[%clk 0:02:42.1]} 9... h6 {[%clk 0:02:58]} 10.
Nbd2 {[%clk 0:02:39.2]} 10... Be6 {[%clk 0:02:58.5]} 11. b4 {[%clk 0:02:32.9]}
11... d5 {[%clk 0:02:46.9]} 12. exd5 {[%clk 0:02:27.6]} 12... Nxd5 {[%clk
0:02:47.8]} 13. Qc2 {[%clk 0:01:59.1]} 13... Nf4 {[%clk 0:02:37]} 14. Bxe6
{[%clk 0:01:53.8]} 14... fxe6 {[%clk 0:02:30]} 15. Nc4 {[%clk 0:01:26.2]} 15...
Qxd3 {[%clk 0:02:16.6]} 16. Qa2 {[%clk 0:01:04.4]} 16... Nxh3+ {[%clk 0:02:13]}
17. Kh2 {[%clk 0:00:52.5]} 17... Nxf2 {[%clk 0:01:51.7]} 18. Ncxe5 {[%clk
0:00:46.8]} 18... Qf5 {[%clk 0:01:28.3]} 19. Be3 {[%clk 0:00:13.4]} 19... Nxe5
{[%clk 0:00:48.2]} 20. Bxa7 {[%clk 0:00:12.1]} 20... Neg4+ {[%clk 0:00:42.1]}
21. Kg1 {[%clk 0:00:08.6]} 21... Rxa7 {[%clk 0:00:40.6]} 22. Rxe6 {[%clk
0:00:08.9]} 22... Kh8 {[%clk 0:00:36.5]} 23. Nh4 {[%clk 0:00:08.1]} 23... Qf7
{[%clk 0:00:13.6]} 24. Ng6+ {[%clk 0:00:06.6]} 24... Kg8 {[%clk 0:00:14]} 25.
Nxf8 {[%clk 0:00:06.8]} 25... Kxf8 {[%clk 0:00:14.3]} 26. Rae1 {[%clk
0:00:05.2]} 26... Ra8 {[%clk 0:00:11.2]} 27. Qe2 {[%clk 0:00:04.4]} 27... Kg8
{[%clk 0:00:10.6]} 28. Re7 {[%clk 0:00:03.4]} 28... Qf4 {[%clk 0:00:10.8]} 29.
Re8+ {[%clk 0:00:03]} 29... Rxe8 {[%clk 0:00:11]} 30. Qxe8+ {[%clk 0:00:03.9]}
30... Kh7 {[%clk 0:00:11.5]} 31. Qe6 {[%clk 0:00:02.3]} 31... Nh3+ {[%clk
0:00:09.7]} 32. Kh1 {[%clk 0:00:01.3]} 32... Qh2# {[%clk 0:00:09.7]} 0-1

[Event "Late-Titled-Tuesday-Blitz-September-05-2023"]
[Site "Chess.com"]
[Date "2023.09.05"]
[Round "6"]
[White "Qvalda"]
[Black "Rinqed222"]
[Result "0-1"]
[WhiteElo "2354"]
[BlackElo "2237"]
[TimeControl "180+1"]
[EndTime "15:07:00 PDT"]
[Termination "Rinqed222 won on time"]

1. d4 {[%clk 0:02:36.8]} 1... Nf6 {[%clk 0:02:58.9]} 2. Nf3 {[%clk 0:02:36.1]}
2... g6 {[%clk 0:02:59.1]} 3. g3 {[%clk 0:02:32.4]} 3... Bg7 {[%clk 0:02:59.2]}
4. Bg2 {[%clk 0:02:33]} 4... O-O {[%clk 0:02:59.8]} 5. O-O {[%clk 0:02:33.6]}
5... d6 {[%clk 0:02:58.4]} 6. b3 {[%clk 0:02:33.9]} 6... c5 {[%clk 0:02:58.2]}
7. Bb2 {[%clk 0:02:31.2]} 7... Nc6 {[%clk 0:02:54]} 8. c4 {[%clk 0:02:27.4]}
8... Bf5 {[%clk 0:02:43.3]} 9. dxc5 {[%clk 0:02:21.7]} 9... dxc5 {[%clk
0:02:42.3]} 10. Nc3 {[%clk 0:02:21.3]} 10... Qc8 {[%clk 0:02:07.9]} 11. Nd5
{[%clk 0:02:15.3]} 11... Nxd5 {[%clk 0:02:00.4]} 12. Bxg7 {[%clk 0:02:14.4]}
12... Ne3 {[%clk 0:01:52]} 13. Qc1 {[%clk 0:01:39.9]} 13... Nxf1 {[%clk
0:01:10.8]} 14. Bxf8 {[%clk 0:01:38.9]} 14... Qxf8 {[%clk 0:01:08]} 15. Kxf1
{[%clk 0:01:34.3]} 15... Rd8 {[%clk 0:01:06.8]} 16. Qe3 {[%clk 0:01:34.1]} 16...
Nd4 {[%clk 0:01:02.5]} 17. Rd1 {[%clk 0:01:31.2]} 17... Nxf3 {[%clk 0:00:51.5]}
18. Rxd8 {[%clk 0:01:28.3]} 18... Nxh2+ {[%clk 0:00:51.7]} 19. Kg1 {[%clk
0:01:23.3]} 19... Qxd8 {[%clk 0:00:52.6]} 20. Kxh2 {[%clk 0:01:23.2]} 20... b6
{[%clk 0:00:52.3]} 21. Qe5 {[%clk 0:01:18.5]} 21... Qd6 {[%clk 0:00:50.2]} 22.
Qb2 {[%clk 0:01:09.7]} 22... Qd4 {[%clk 0:00:39.8]} 23. Qxd4 {[%clk 0:00:56.3]}
23... cxd4 {[%clk 0:00:40.7]} 24. g4 {[%clk 0:00:19.1]} 24... Bxg4 {[%clk
0:00:31.1]} 25. Kg3 {[%clk 0:00:19.3]} 25... Bxe2 {[%clk 0:00:31.2]} 26. Kf4
{[%clk 0:00:19.5]} 26... f6 {[%clk 0:00:28.3]} 27. Ke4 {[%clk 0:00:16.7]} 27...
e5 {[%clk 0:00:28.6]} 28. f4 {[%clk 0:00:12.1]} 28... d3 {[%clk 0:00:26.1]} 29.
Ke3 {[%clk 0:00:10.6]} 29... exf4+ {[%clk 0:00:25.1]} 30. Kd2 {[%clk 0:00:08.7]}
30... Kf7 {[%clk 0:00:25.3]} 31. b4 {[%clk 0:00:07.8]} 31... Ke7 {[%clk
0:00:25.7]} 32. c5 {[%clk 0:00:07.6]} 32... bxc5 {[%clk 0:00:25.5]} 33. bxc5
{[%clk 0:00:08.5]} 33... g5 {[%clk 0:00:25.3]} 34. Be4 {[%clk 0:00:06.1]} 34...
h5 {[%clk 0:00:25.5]} 35. a4 {[%clk 0:00:02]} 35... h4 {[%clk 0:00:25.1]} 36. a5
{[%clk 0:00:02.3]} 36... g4 {[%clk 0:00:25.6]} 37. a6 {[%clk 0:00:02.4]} 37...
f3 {[%clk 0:00:26]} 38. Ke3 {[%clk 0:00:02.1]} 38... f2 {[%clk 0:00:25.3]} 39.
Kxf2 {[%clk 0:00:02.1]} 39... g3+ {[%clk 0:00:23.5]} 0-1

[Event "Late-Titled-Tuesday-Blitz-September-05-2023"]
[Site "Chess.com"]
[Date "2023.09.05"]
[Round "6"]
[White "Ali_rastbod"]
[Black "DeArron_Fox"]
[Result "1-0"]
[WhiteElo "2713"]
[BlackElo "2469"]
[TimeControl "180+1"]
[EndTime "15:07:02 PDT"]
[Termination "Ali_rastbod won on time"]

1. e4 {[%clk 0:03:00.9]} 1... c5 {[%clk 0:02:59.9]} 2. Nc3 {[%clk 0:02:52.2]}
2... e6 {[%clk 0:03:00]} 3. Nge2 {[%clk 0:02:51.7]} 3... a6 {[%clk 0:03:00.1]}
4. g3 {[%clk 0:02:49.9]} 4... b5 {[%clk 0:03:00.6]} 5. Bg2 {[%clk 0:02:48.9]}
5... Bb7 {[%clk 0:03:01.1]} 6. O-O {[%clk 0:02:48.8]} 6... Nf6 {[%clk
0:02:57.8]} 7. d4 {[%clk 0:02:42]} 7... cxd4 {[%clk 0:02:57]} 8. Nxd4 {[%clk
0:02:42.9]} 8... b4 {[%clk 0:02:56.4]} 9. Nd5 {[%clk 0:02:38.1]} 9... exd5
{[%clk 0:02:44.7]} 10. exd5 {[%clk 0:02:39]} 10... Bc5 {[%clk 0:02:27.4]} 11.
Re1+ {[%clk 0:02:34.4]} 11... Kf8 {[%clk 0:02:27.5]} 12. Nf5 {[%clk 0:02:32]}
12... d6 {[%clk 0:02:12.7]} 13. Qe2 {[%clk 0:02:07.4]} 13... Nbd7 {[%clk
0:01:55.9]} 14. g4 {[%clk 0:01:53.3]} 14... Bxd5 {[%clk 0:01:38.1]} 15. Bxd5
{[%clk 0:01:39.3]} 15... Nxd5 {[%clk 0:01:37.5]} 16. Qf3 {[%clk 0:01:39.5]}
16... N5b6 {[%clk 0:00:51.8]} 17. Bf4 {[%clk 0:01:29.8]} 17... Qc7 {[%clk
0:00:16.6]} 18. Re7 {[%clk 0:01:25.2]} 18... Re8 {[%clk 0:00:04.4]} 19. Rae1
{[%clk 0:01:20.8]} 19... Rxe7 {[%clk 0:00:03.4]} 20. Rxe7 {[%clk 0:01:21.7]}
20... Qd8 {[%clk 0:00:03.5]} 21. g5 {[%clk 0:00:31]} 21... Qxe7 {[%clk
0:00:03.4]} 22. Nxe7 {[%clk 0:00:31.2]} 22... Kxe7 {[%clk 0:00:04.3]} 23. Qe4+
{[%clk 0:00:30.7]} 23... Kd8 {[%clk 0:00:04.9]} 24. Qf5 {[%clk 0:00:29.3]} 24...
f6 {[%clk 0:00:03.2]} 25. g6 {[%clk 0:00:26.5]} 25... hxg6 {[%clk 0:00:02.9]}
26. Qxg6 {[%clk 0:00:27.4]} 26... Re8 {[%clk 0:00:03]} 27. Qxg7 {[%clk
0:00:26.3]} 27... Re1+ {[%clk 0:00:03.6]} 28. Kg2 {[%clk 0:00:26.2]} 28... Re2
{[%clk 0:00:04.5]} 29. Bg3 {[%clk 0:00:26.7]} 29... Rxc2 {[%clk 0:00:04.3]} 30.
h4 {[%clk 0:00:25.4]} 30... Nd5 {[%clk 0:00:02.5]} 31. Qg8+ {[%clk 0:00:24.1]}
31... Kc7 {[%clk 0:00:02.4]} 32. Qxd5 {[%clk 0:00:25]} 32... Rxb2 {[%clk
0:00:02.6]} 33. h5 {[%clk 0:00:24.7]} 33... Ne5 {[%clk 0:00:03]} 34. h6 {[%clk
0:00:21.5]} 34... Ng4 {[%clk 0:00:02.3]} 35. h7 {[%clk 0:00:19.5]} 35... Nxf2
{[%clk 0:00:02.4]} 36. Qxc5+ {[%clk 0:00:17.8]} 1-0